[Event "Early-Titled-Tuesday-Blitz-March-26-2024"]
[Site "Chess.com"]
[Date "2024.03.26"]
[Round "7"]
[White "whiteglovethief"]
[Black "Tol_Tol"]
[Result "1/2-1/2"]
[WhiteElo "2503"]
[BlackElo "2347"]
[TimeControl "180+1"]
[EndTime "9:16:47 PDT"]
[Termination "Game drawn - insufficient material"]

1. d4 {[%clk 0:02:10.9]} 1... Nf6 {[%clk 0:02:58.5]} 2. c4 {[%clk 0:02:11.2]}
2... g6 {[%clk 0:02:58.9]} 3. Nc3 {[%clk 0:02:10.3]} 3... Bg7 {[%clk 0:02:59.3]}
4. e4 {[%clk 0:02:10.8]} 4... O-O {[%clk 0:02:59.4]} 5. Nf3 {[%clk 0:02:10.4]}
5... d6 {[%clk 0:02:59.6]} 6. Be2 {[%clk 0:02:10.8]} 6... e5 {[%clk 0:02:59.4]}
7. O-O {[%clk 0:02:11]} 7... Nc6 {[%clk 0:02:59.1]} 8. d5 {[%clk 0:02:10.7]}
8... Ne7 {[%clk 0:02:57.9]} 9. Ne1 {[%clk 0:02:11.1]} 9... c5 {[%clk 0:02:58.1]}
10. Nd3 {[%clk 0:02:08.3]} 10... Nd7 {[%clk 0:02:57.8]} 11. f4 {[%clk 0:02:08]}
11... f5 {[%clk 0:02:54.8]} 12. fxe5 {[%clk 0:02:04.3]} 12... Nxe5 {[%clk
0:02:54.7]} 13. Bg5 {[%clk 0:02:01.7]} 13... h6 {[%clk 0:02:51.3]} 14. Bd2
{[%clk 0:01:59.5]} 14... g5 {[%clk 0:02:48.2]} 15. exf5 {[%clk 0:01:58.1]} 15...
Bxf5 {[%clk 0:02:46]} 16. Nxe5 {[%clk 0:01:51.5]} 16... Bxe5 {[%clk 0:02:45.8]}
17. Bg4 {[%clk 0:01:51.6]} 17... Bg6 {[%clk 0:02:29.1]} 18. Be6+ {[%clk
0:01:48.6]} 18... Kh7 {[%clk 0:02:26.8]} 19. Qg4 {[%clk 0:01:45.4]} 19... Ng8
{[%clk 0:02:17.1]} 20. Ne4 {[%clk 0:01:34]} 20... Nf6 {[%clk 0:02:11.4]} 21.
Nxf6+ {[%clk 0:01:30.8]} 21... Rxf6 {[%clk 0:02:10.9]} 22. Bc3 {[%clk
0:01:24.7]} 22... Bxc3 {[%clk 0:02:07.2]} 23. bxc3 {[%clk 0:01:24.5]} 23...
Rxf1+ {[%clk 0:01:57.9]} 24. Rxf1 {[%clk 0:01:23.4]} 24... Qe7 {[%clk
0:01:58.5]} 25. h4 {[%clk 0:01:17.4]} 25... gxh4 {[%clk 0:01:13.1]} 26. Rf4
{[%clk 0:01:16.5]} 26... Rf8 {[%clk 0:01:07.2]} 27. Qxh4 {[%clk 0:01:07.6]}
27... Qxh4 {[%clk 0:01:06.6]} 28. Rxh4 {[%clk 0:01:08.5]} 28... Kg7 {[%clk
0:00:53.7]} 29. a4 {[%clk 0:01:07]} 29... a5 {[%clk 0:00:52.9]} 30. Rg4 {[%clk
0:01:04.5]} 30... Kf6 {[%clk 0:00:47.6]} 31. Kf2 {[%clk 0:00:56.4]} 31... Bc2
{[%clk 0:00:34.1]} 32. Ke3 {[%clk 0:00:49]} 32... Bxa4 {[%clk 0:00:32.5]} 33.
Rf4+ {[%clk 0:00:47.9]} 33... Ke7 {[%clk 0:00:28.3]} 34. Rg4 {[%clk 0:00:48.8]}
34... Be8 {[%clk 0:00:21.5]} 35. Rg7+ {[%clk 0:00:41]} 35... Bf7 {[%clk
0:00:21.4]} 36. Rh7 {[%clk 0:00:40.4]} 36... h5 {[%clk 0:00:15.9]} 37. Bxf7
{[%clk 0:00:34.7]} 37... Rxf7 {[%clk 0:00:16]} 38. Rxh5 {[%clk 0:00:35.4]} 38...
Rg7 {[%clk 0:00:11.9]} 39. Kf3 {[%clk 0:00:34.8]} 39... Rf7+ {[%clk 0:00:10.6]}
40. Ke3 {[%clk 0:00:35]} 40... Rf1 {[%clk 0:00:09.6]} 41. Rh7+ {[%clk
0:00:34.6]} 41... Kf6 {[%clk 0:00:10.2]} 42. Rxb7 {[%clk 0:00:34]} 42... Rc1
{[%clk 0:00:08.3]} 43. Kd2 {[%clk 0:00:31.8]} 43... Rg1 {[%clk 0:00:08]} 44. Ra7
{[%clk 0:00:26.5]} 44... Rxg2+ {[%clk 0:00:08.4]} 45. Kd3 {[%clk 0:00:25.7]}
45... Rg3+ {[%clk 0:00:08.6]} 46. Kc2 {[%clk 0:00:24.8]} 46... Rg4 {[%clk
0:00:07.2]} 47. Kb3 {[%clk 0:00:24.6]} 47... Ke5 {[%clk 0:00:06.7]} 48. Rxa5
{[%clk 0:00:24]} 48... Ke4 {[%clk 0:00:07.2]} 49. Ra6 {[%clk 0:00:23.4]} 49...
Rg6 {[%clk 0:00:06.6]} 50. Ra1 {[%clk 0:00:23.4]} 50... Kd3 {[%clk 0:00:06.5]}
51. Re1 {[%clk 0:00:21.7]} 51... Rg8 {[%clk 0:00:05.8]} 52. Rd1+ {[%clk
0:00:21.1]} 52... Ke2 {[%clk 0:00:04.3]} 53. Rh1 {[%clk 0:00:20.3]} 53... Kd3
{[%clk 0:00:04.2]} 54. Rh3+ {[%clk 0:00:19.5]} 54... Kd2 {[%clk 0:00:03.6]} 55.
Rh2+ {[%clk 0:00:19.8]} 55... Kd3 {[%clk 0:00:03.9]} 56. Rh3+ {[%clk 0:00:20.5]}
56... Kd2 {[%clk 0:00:04.4]} 57. Rh6 {[%clk 0:00:20.7]} 57... Rb8+ {[%clk
0:00:04.4]} 58. Ka4 {[%clk 0:00:20.7]} 58... Kxc3 {[%clk 0:00:04.8]} 59. Rxd6
{[%clk 0:00:20.6]} 59... Kxc4 {[%clk 0:00:05.4]} 60. Ka5 {[%clk 0:00:20.5]}
60... Rb5+ {[%clk 0:00:05.3]} 61. Ka6 {[%clk 0:00:20.3]} 61... Rb3 {[%clk
0:00:06]} 62. Rd8 {[%clk 0:00:19.9]} 62... Rd3 {[%clk 0:00:06.8]} 63. d6 {[%clk
0:00:20.2]} 63... Kb3 {[%clk 0:00:07]} 64. d7 {[%clk 0:00:20.2]} 64... c4 {[%clk
0:00:07.6]} 65. Rb8+ {[%clk 0:00:19.8]} 65... Kc2 {[%clk 0:00:07.8]} 66. d8=Q
{[%clk 0:00:19.8]} 66... Rxd8 {[%clk 0:00:08.1]} 67. Rxd8 {[%clk 0:00:20.7]}
67... c3 {[%clk 0:00:08.2]} 68. Kb5 {[%clk 0:00:21.4]} 68... Kb3 {[%clk
0:00:08.7]} 69. Rd3 {[%clk 0:00:15.8]} 69... Kb2 {[%clk 0:00:07.6]} 70. Kb4
{[%clk 0:00:12.5]} 70... c2 {[%clk 0:00:08.2]} 71. Rd2 {[%clk 0:00:11.9]} 71...
Kb1 {[%clk 0:00:08.2]} 72. Rxc2 {[%clk 0:00:07.9]} 72... Kxc2 {[%clk 0:00:08.3]}
1/2-1/2

[Event "Early-Titled-Tuesday-Blitz-March-26-2024"]
[Site "Chess.com"]
[Date "2024.03.26"]
[Round "7"]
[White "Tugrik1969"]
[Black "reevecanada"]
[Result "1/2-1/2"]
[WhiteElo "2512"]
[BlackElo "2673"]
[TimeControl "180+1"]
[EndTime "9:17:14 PDT"]
[Termination "Game drawn by repetition"]

1. d4 {[%clk 0:03:00.9]} 1... d6 {[%clk 0:02:58.4]} 2. Nf3 {[%clk 0:03:00.4]}
2... Nf6 {[%clk 0:02:57.1]} 3. c4 {[%clk 0:03:00.7]} 3... Nbd7 {[%clk
0:02:56.2]} 4. Nc3 {[%clk 0:02:57.4]} 4... g6 {[%clk 0:02:56.6]} 5. e4 {[%clk
0:02:56.7]} 5... Bg7 {[%clk 0:02:56.6]} 6. Be2 {[%clk 0:02:57.3]} 6... e5 {[%clk
0:02:55.5]} 7. O-O {[%clk 0:02:53.9]} 7... O-O {[%clk 0:02:55.7]} 8. Be3 {[%clk
0:02:54.4]} 8... Re8 {[%clk 0:02:55.4]} 9. d5 {[%clk 0:02:52.5]} 9... Nf8 {[%clk
0:02:54.8]} 10. Nd2 {[%clk 0:02:39.3]} 10... Bd7 {[%clk 0:02:49.7]} 11. b4
{[%clk 0:02:38.9]} 11... c6 {[%clk 0:02:47.8]} 12. Nb3 {[%clk 0:02:21.9]} 12...
Qc7 {[%clk 0:02:42.9]} 13. Rc1 {[%clk 0:02:20.5]} 13... h5 {[%clk 0:02:38.2]}
14. f3 {[%clk 0:02:19.3]} 14... h4 {[%clk 0:02:27.1]} 15. c5 {[%clk 0:02:07.3]}
15... dxc5 {[%clk 0:02:21.1]} 16. Nxc5 {[%clk 0:01:50.4]} 16... Bc8 {[%clk
0:02:04.4]} 17. dxc6 {[%clk 0:01:29.7]} 17... bxc6 {[%clk 0:02:02.8]} 18. Bc4
{[%clk 0:01:25.6]} 18... Nh5 {[%clk 0:01:57.7]} 19. Qb3 {[%clk 0:01:24.5]} 19...
a5 {[%clk 0:01:56.4]} 20. b5 {[%clk 0:01:18.9]} 20... Rb8 {[%clk 0:01:50.7]} 21.
a4 {[%clk 0:01:17.9]} 21... Qe7 {[%clk 0:01:48.6]} 22. Rfd1 {[%clk 0:01:05.2]}
22... Ne6 {[%clk 0:01:45.5]} 23. Nxe6 {[%clk 0:01:02.4]} 23... Bxe6 {[%clk
0:01:42.8]} 24. Bxe6 {[%clk 0:01:02.6]} 24... Qxe6 {[%clk 0:01:42.4]} 25. Qxe6
{[%clk 0:01:02.2]} 25... Rxe6 {[%clk 0:01:43.1]} 26. b6 {[%clk 0:00:58.9]} 26...
Bf8 {[%clk 0:01:41.7]} 27. Rd7 {[%clk 0:00:56.9]} 27... Bb4 {[%clk 0:01:33.5]}
28. Ne2 {[%clk 0:00:56.9]} 28... Nf6 {[%clk 0:01:27.8]} 29. Rc7 {[%clk
0:00:54.5]} 29... c5 {[%clk 0:00:57]} 30. Bxc5 {[%clk 0:00:50.8]} 30... Bxc5+
{[%clk 0:00:56.5]} 31. R7xc5 {[%clk 0:00:48.5]} 31... Rbxb6 {[%clk 0:00:55.8]}
32. Rxa5 {[%clk 0:00:49]} 32... Rb2 {[%clk 0:00:56.1]} 33. Kf1 {[%clk
0:00:43.4]} 33... Ra2 {[%clk 0:00:55.8]} 34. Nc3 {[%clk 0:00:40.2]} 34... Rd2
{[%clk 0:00:52.2]} 35. Nd5 {[%clk 0:00:38.5]} 35... Nh5 {[%clk 0:00:51]} 36.
Rac5 {[%clk 0:00:34]} 36... h3 {[%clk 0:00:49.5]} 37. gxh3 {[%clk 0:00:25.4]}
37... Rxh2 {[%clk 0:00:48.5]} 38. Kg1 {[%clk 0:00:24.6]} 38... Rxh3 {[%clk
0:00:40.8]} 39. Kg2 {[%clk 0:00:24.8]} 39... Rh4 {[%clk 0:00:41.2]} 40. a5
{[%clk 0:00:24.7]} 40... Ra6 {[%clk 0:00:33.7]} 41. Rb1 {[%clk 0:00:22.2]} 41...
Nf4+ {[%clk 0:00:26.7]} 42. Nxf4 {[%clk 0:00:21.6]} 42... Rxf4 {[%clk
0:00:26.1]} 43. Rb6 {[%clk 0:00:20.3]} 43... Rf6 {[%clk 0:00:23]} 44. Rxf6
{[%clk 0:00:18.9]} 44... Rxf6 {[%clk 0:00:23.9]} 45. Rxe5 {[%clk 0:00:19.5]}
45... Ra6 {[%clk 0:00:23.7]} 46. Rb5 {[%clk 0:00:19.5]} 46... Kf8 {[%clk
0:00:22.9]} 47. f4 {[%clk 0:00:19.8]} 47... Ke7 {[%clk 0:00:23.2]} 48. Kf3
{[%clk 0:00:20.7]} 48... Kd7 {[%clk 0:00:22.5]} 49. Kg4 {[%clk 0:00:20.9]} 49...
Ke6 {[%clk 0:00:20.5]} 50. Kg5 {[%clk 0:00:20.4]} 50... Ke7 {[%clk 0:00:19.7]}
51. e5 {[%clk 0:00:19.8]} 51... Kf8 {[%clk 0:00:19.1]} 52. f5 {[%clk 0:00:18.4]}
52... gxf5 {[%clk 0:00:18.6]} 53. Kxf5 {[%clk 0:00:17.7]} 53... Kg7 {[%clk
0:00:19.2]} 54. Ke4 {[%clk 0:00:16.3]} 54... Kg6 {[%clk 0:00:18.3]} 55. Kd4
{[%clk 0:00:16.8]} 55... Kf5 {[%clk 0:00:16.9]} 56. Kc4 {[%clk 0:00:14.7]} 56...
Ke4 {[%clk 0:00:13.6]} 57. Kb4 {[%clk 0:00:14.5]} 57... Ra7 {[%clk 0:00:12.4]}
58. Kc5 {[%clk 0:00:13.2]} 58... Ra8 {[%clk 0:00:09.2]} 59. Kb6 {[%clk
0:00:11.5]} 59... Rb8+ {[%clk 0:00:05.7]} 60. Kc6 {[%clk 0:00:11.6]} 60... Ra8
{[%clk 0:00:02.6]} 61. Kb7 {[%clk 0:00:09.9]} 61... Re8 {[%clk 0:00:03.2]} 62.
a6 {[%clk 0:00:09.9]} 62... Re7+ {[%clk 0:00:03.8]} 63. Kb6 {[%clk 0:00:07.7]}
63... Re6+ {[%clk 0:00:03.5]} 64. Ka5 {[%clk 0:00:07.3]} 64... Re7 {[%clk
0:00:03.6]} 65. Rb7 {[%clk 0:00:06.3]} 65... Rxe5+ {[%clk 0:00:03.3]} 66. Kb6
{[%clk 0:00:03.3]} 66... f5 {[%clk 0:00:03.2]} 67. a7 {[%clk 0:00:02.8]} 67...
Re6+ {[%clk 0:00:03.8]} 68. Ka5 {[%clk 0:00:01.4]} 68... Re5+ {[%clk 0:00:03.5]}
69. Rb5 {[%clk 0:00:01.7]} 69... Re8 {[%clk 0:00:04.4]} 70. Rb8 {[%clk
0:00:01.9]} 70... Re5+ {[%clk 0:00:05.1]} 71. Rb5 {[%clk 0:00:01.8]} 71... Re8
{[%clk 0:00:05.1]} 72. Rb8 {[%clk 0:00:02.4]} 72... Re5+ {[%clk 0:00:04.9]} 73.
Rb5 {[%clk 0:00:03.1]} 1/2-1/2

[Event "Early-Titled-Tuesday-Blitz-March-26-2024"]
[Site "Chess.com"]
[Date "2024.03.26"]
[Round "7"]
[White "chucksterf10"]
[Black "stollenmonster"]
[Result "0-1"]
[WhiteElo "2595"]
[BlackElo "2890"]
[TimeControl "180+1"]
[EndTime "9:17:25 PDT"]
[Termination "stollenmonster won by resignation"]

1. f4 {[%clk 0:03:00.9]} 1... c5 {[%clk 0:02:59.8]} 2. Nf3 {[%clk 0:03:01]} 2...
Nc6 {[%clk 0:03:00.1]} 3. g3 {[%clk 0:03:01.6]} 3... g6 {[%clk 0:03:00.6]} 4.
Bg2 {[%clk 0:03:02.2]} 4... Bg7 {[%clk 0:03:01.3]} 5. O-O {[%clk 0:03:02.8]}
5... d5 {[%clk 0:03:01]} 6. d3 {[%clk 0:03:03.1]} 6... Nf6 {[%clk 0:03:00.9]} 7.
Qe1 {[%clk 0:02:59.6]} 7... d4 {[%clk 0:03:01.2]} 8. Na3 {[%clk 0:02:53.7]} 8...
O-O {[%clk 0:03:00.6]} 9. Nc4 {[%clk 0:02:52.2]} 9... Nd5 {[%clk 0:02:58.4]} 10.
e4 {[%clk 0:02:49.2]} 10... dxe3 {[%clk 0:02:58.1]} 11. Nxe3 {[%clk 0:02:49.4]}
11... Nxe3 {[%clk 0:02:46.6]} 12. Qxe3 {[%clk 0:02:22.7]} 12... Nd4 {[%clk
0:02:43.9]} 13. Qf2 {[%clk 0:02:05.5]} 13... Rb8 {[%clk 0:02:25.3]} 14. c3
{[%clk 0:01:45.5]} 14... Nxf3+ {[%clk 0:02:23.8]} 15. Qxf3 {[%clk 0:01:46.4]}
15... b6 {[%clk 0:02:22.6]} 16. Rd1 {[%clk 0:01:40.8]} 16... Bb7 {[%clk
0:02:19.1]} 17. Qe2 {[%clk 0:01:39.6]} 17... Bxg2 {[%clk 0:02:19.5]} 18. Qxg2
{[%clk 0:01:32.6]} 18... Qd7 {[%clk 0:02:18.7]} 19. Be3 {[%clk 0:01:31.9]} 19...
Rfd8 {[%clk 0:02:18.1]} 20. Rd2 {[%clk 0:01:31.3]} 20... Qb5 {[%clk 0:02:11.3]}
21. Rad1 {[%clk 0:01:28.7]} 21... Rd7 {[%clk 0:02:11.6]} 22. d4 {[%clk
0:01:25.8]} 22... cxd4 {[%clk 0:02:10.2]} 23. Bxd4 {[%clk 0:01:26.7]} 23... e5
{[%clk 0:01:50.1]} 24. fxe5 {[%clk 0:01:17]} 24... Bxe5 {[%clk 0:01:46.7]} 25.
Bxe5 {[%clk 0:01:16.4]} 25... Rxd2 {[%clk 0:01:45.5]} 26. Rxd2 {[%clk 0:01:10]}
26... Qxe5 {[%clk 0:01:45.8]} 27. h4 {[%clk 0:01:09]} 27... Re8 {[%clk
0:01:42.3]} 28. Kh2 {[%clk 0:01:04]} 28... h5 {[%clk 0:01:39.3]} 29. Rf2 {[%clk
0:00:57]} 29... Re7 {[%clk 0:01:30.9]} 30. Qf3 {[%clk 0:00:53.4]} 30... Kg7
{[%clk 0:01:28.1]} 31. a3 {[%clk 0:00:51.6]} 31... Qe6 {[%clk 0:01:19.3]} 32.
Kg2 {[%clk 0:00:50.1]} 32... f6 {[%clk 0:01:10.9]} 33. Rd2 {[%clk 0:00:47.8]}
33... Qe5 {[%clk 0:01:06.5]} 34. Rf2 {[%clk 0:00:43.9]} 34... Qe4 {[%clk
0:01:00.1]} 35. Qxe4 {[%clk 0:00:43.6]} 35... Rxe4 {[%clk 0:01:00.8]} 36. Kf3
{[%clk 0:00:44.3]} 36... Re7 {[%clk 0:00:59.7]} 37. c4 {[%clk 0:00:43.5]} 37...
g5 {[%clk 0:00:59]} 38. hxg5 {[%clk 0:00:42.2]} 38... fxg5 {[%clk 0:00:59.6]}
39. Rd2 {[%clk 0:00:42.3]} 39... Kf6 {[%clk 0:00:54.3]} 40. Rd6+ {[%clk
0:00:41]} 40... Kf5 {[%clk 0:00:52.6]} 41. Rd5+ {[%clk 0:00:41.3]} 41... Re5
{[%clk 0:00:42.5]} 42. Rd7 {[%clk 0:00:38.6]} 42... g4+ {[%clk 0:00:35.4]} 43.
Kf2 {[%clk 0:00:38.4]} 43... Rc5 {[%clk 0:00:33.9]} 44. b3 {[%clk 0:00:36]}
44... b5 {[%clk 0:00:26.7]} 45. cxb5 {[%clk 0:00:29.3]} 45... Rc2+ {[%clk
0:00:22.3]} 46. Ke3 {[%clk 0:00:18]} 46... Rg2 {[%clk 0:00:21.5]} 47. Rd5+
{[%clk 0:00:17.9]} 47... Ke6 {[%clk 0:00:21.2]} 48. Rxh5 {[%clk 0:00:17.3]}
48... Rxg3+ {[%clk 0:00:21.2]} 49. Kd4 {[%clk 0:00:17.8]} 49... Rxb3 {[%clk
0:00:21.7]} 50. a4 {[%clk 0:00:08.4]} 50... Rb4+ {[%clk 0:00:21.2]} 51. Kc5
{[%clk 0:00:09]} 51... Rxa4 {[%clk 0:00:21.8]} 52. Rg5 {[%clk 0:00:08.6]} 52...
Kf6 {[%clk 0:00:20.8]} 53. Rg8 {[%clk 0:00:09.2]} 53... Kf5 {[%clk 0:00:21.3]}
54. Rf8+ {[%clk 0:00:08.3]} 54... Kg5 {[%clk 0:00:21.4]} 55. Kc6 {[%clk
0:00:07]} 55... g3 {[%clk 0:00:20.9]} 56. Rg8+ {[%clk 0:00:07.5]} 56... Kf4
{[%clk 0:00:21.3]} 57. Kb7 {[%clk 0:00:08.2]} 57... Kf3 {[%clk 0:00:20.8]} 58.
Rf8+ {[%clk 0:00:06.9]} 58... Kg2 {[%clk 0:00:20.9]} 59. Ra8 {[%clk 0:00:05.8]}
59... Kg1 {[%clk 0:00:20.2]} 60. Rxa7 {[%clk 0:00:05.4]} 60... Rxa7+ {[%clk
0:00:16.5]} 61. Kxa7 {[%clk 0:00:06.3]} 61... g2 {[%clk 0:00:17.2]} 62. b6
{[%clk 0:00:07.2]} 62... Kf1 {[%clk 0:00:17.6]} 63. b7 {[%clk 0:00:08.1]} 63...
g1=Q+ {[%clk 0:00:17.9]} 64. Ka8 {[%clk 0:00:08.7]} 64... Qg2 {[%clk 0:00:17.6]}
65. Ka7 {[%clk 0:00:08.4]} 65... Qf2+ {[%clk 0:00:18]} 66. Ka8 {[%clk
0:00:08.6]} 66... Qf3 {[%clk 0:00:18.5]} 67. Ka7 {[%clk 0:00:09.5]} 67... Qe3+
{[%clk 0:00:18.5]} 68. Ka8 {[%clk 0:00:10.4]} 68... Qe4 {[%clk 0:00:19]} 69. Ka7
{[%clk 0:00:10.2]} 69... Qd4+ {[%clk 0:00:19.2]} 70. Ka6 {[%clk 0:00:10.1]}
70... Qc4+ {[%clk 0:00:18.7]} 71. Kb6 {[%clk 0:00:10.4]} 71... Qb4+ {[%clk
0:00:19]} 72. Kc7 {[%clk 0:00:10.8]} 72... Qc5+ {[%clk 0:00:18.7]} 73. Kd7
{[%clk 0:00:11.4]} 73... Qb6 {[%clk 0:00:18]} 74. Kc8 {[%clk 0:00:12]} 74...
Qc6+ {[%clk 0:00:18.4]} 75. Kb8 {[%clk 0:00:12.5]} 75... Ke2 {[%clk 0:00:18.6]}
76. Ka7 {[%clk 0:00:13.4]} 76... Qa4+ {[%clk 0:00:18.4]} 77. Kb6 {[%clk
0:00:14.3]} 77... Qb4+ {[%clk 0:00:18.8]} 78. Ka6 {[%clk 0:00:14.9]} 78... Kd3
{[%clk 0:00:17.3]} 79. Ka7 {[%clk 0:00:15.6]} 79... Qa5+ {[%clk 0:00:17.6]} 80.
Kb8 {[%clk 0:00:16.2]} 80... Kd4 {[%clk 0:00:16.8]} 81. Kc8 {[%clk 0:00:17.1]}
81... Qf5+ {[%clk 0:00:13.3]} 82. Kc7 {[%clk 0:00:17.3]} 82... Qe5+ {[%clk
0:00:13.6]} 83. Kc8 {[%clk 0:00:17.9]} 83... Qe6+ {[%clk 0:00:14]} 84. Kc7
{[%clk 0:00:18.2]} 84... Qe7+ {[%clk 0:00:14.3]} 85. Kc8 {[%clk 0:00:19.1]}
85... Qc5+ {[%clk 0:00:14.3]} 86. Kd7 {[%clk 0:00:18.7]} 86... Qb6 {[%clk
0:00:12.7]} 87. Kc8 {[%clk 0:00:19.3]} 87... Qc6+ {[%clk 0:00:12.8]} 88. Kb8
{[%clk 0:00:19.8]} 88... Kc5 {[%clk 0:00:12.9]} 89. Ka7 {[%clk 0:00:20.4]} 89...
Qa4+ {[%clk 0:00:11.5]} 90. Kb8 {[%clk 0:00:21]} 90... Kc6 {[%clk 0:00:11.1]}
91. Kc8 {[%clk 0:00:20.9]} 91... Qa6 {[%clk 0:00:10.9]} 92. Kd8 {[%clk 0:00:21]}
92... Qxb7 {[%clk 0:00:11.2]} 0-1

[Event "Early-Titled-Tuesday-Blitz-March-26-2024"]
[Site "Chess.com"]
[Date "2024.03.26"]
[Round "8"]
[White "ChelsieMonica"]
[Black "Meri-Arabidze"]
[Result "0-1"]
[WhiteElo "2547"]
[BlackElo "2677"]
[TimeControl "180+1"]
[EndTime "9:19:40 PDT"]
[Termination "Meri-Arabidze won by resignation"]

1. c4 {[%clk 0:03:00.9]} 1... e6 {[%clk 0:02:58.8]} 2. d4 {[%clk 0:02:58.8]}
2... Nf6 {[%clk 0:02:57.9]} 3. Nc3 {[%clk 0:02:58.5]} 3... Bb4 {[%clk
0:02:57.7]} 4. e3 {[%clk 0:02:58.5]} 4... O-O {[%clk 0:02:57.4]} 5. Bd3 {[%clk
0:02:57.9]} 5... d5 {[%clk 0:02:56.8]} 6. Ne2 {[%clk 0:02:57]} 6... c5 {[%clk
0:02:48.8]} 7. a3 {[%clk 0:02:55.5]} 7... Bxc3+ {[%clk 0:02:42.9]} 8. bxc3
{[%clk 0:02:55.4]} 8... b6 {[%clk 0:02:42]} 9. O-O {[%clk 0:02:54.4]} 9... Ba6
{[%clk 0:02:38.4]} 10. cxd5 {[%clk 0:02:53.9]} 10... exd5 {[%clk 0:02:33.8]} 11.
Ng3 {[%clk 0:02:51.4]} 11... Re8 {[%clk 0:02:28.8]} 12. Re1 {[%clk 0:02:48.1]}
12... Bxd3 {[%clk 0:02:26.8]} 13. Qxd3 {[%clk 0:02:47.9]} 13... Nc6 {[%clk
0:02:27.5]} 14. Bb2 {[%clk 0:02:45]} 14... h5 {[%clk 0:02:23.6]} 15. dxc5 {[%clk
0:02:42.4]} 15... bxc5 {[%clk 0:02:23.1]} 16. c4 {[%clk 0:02:42.8]} 16... d4
{[%clk 0:02:19.3]} 17. Qxd4 {[%clk 0:02:41.2]} 17... cxd4 {[%clk 0:02:18.9]} 0-1

[Event "Early-Titled-Tuesday-Blitz-March-26-2024"]
[Site "Chess.com"]
[Date "2024.03.26"]
[Round "8"]
[White "Cambek64"]
[Black "ritanovikova"]
[Result "1-0"]
[WhiteElo "2479"]
[BlackElo "2112"]
[TimeControl "180+1"]
[EndTime "9:19:47 PDT"]
[Termination "Cambek64 won by resignation"]

1. e4 {[%clk 0:02:48.7]} 1... e5 {[%clk 0:02:49.6]} 2. Nf3 {[%clk 0:02:47.3]}
2... Nf6 {[%clk 0:02:44.9]} 3. Nxe5 {[%clk 0:02:46.1]} 3... d6 {[%clk 0:02:45]}
4. Nf3 {[%clk 0:02:46.8]} 4... Nxe4 {[%clk 0:02:45.2]} 5. Nc3 {[%clk 0:02:47.5]}
5... Nxc3 {[%clk 0:02:44.9]} 6. dxc3 {[%clk 0:02:48.4]} 6... Bf5 {[%clk
0:02:44.3]} 7. Bf4 {[%clk 0:02:46.4]} 7... Be7 {[%clk 0:02:43.9]} 8. Qd2 {[%clk
0:02:47]} 8... Nd7 {[%clk 0:02:43.4]} 9. O-O-O {[%clk 0:02:47.7]} 9... O-O
{[%clk 0:02:35.1]} 10. Nd4 {[%clk 0:02:47]} 10... Bg6 {[%clk 0:02:30.4]} 11. Kb1
{[%clk 0:02:39.8]} 11... c6 {[%clk 0:02:28.9]} 12. c4 {[%clk 0:02:38.4]} 12...
Ne5 {[%clk 0:02:18.6]} 13. f3 {[%clk 0:02:36.6]} 13... Qa5 {[%clk 0:02:13.7]}
14. Qxa5 {[%clk 0:02:35.1]} 1-0

[Event "Early-Titled-Tuesday-Blitz-March-26-2024"]
[Site "Chess.com"]
[Date "2024.03.26"]
[Round "8"]
[White "GMAneta"]
[Black "Rashad_Zeynalli"]
[Result "0-1"]
[WhiteElo "2565"]
[BlackElo "2689"]
[TimeControl "180+1"]
[EndTime "9:19:52 PDT"]
[Termination "Rashad_Zeynalli won by resignation"]

1. Nf3 {[%clk 0:02:32.3]} 1... d5 {[%clk 0:02:58.7]} 2. c4 {[%clk 0:02:32]} 2...
e6 {[%clk 0:02:58.6]} 3. d4 {[%clk 0:02:31.9]} 3... Nf6 {[%clk 0:02:58.4]} 4.
Nc3 {[%clk 0:02:31.5]} 4... Be7 {[%clk 0:02:58.8]} 5. cxd5 {[%clk 0:02:29.3]}
5... exd5 {[%clk 0:02:58.6]} 6. Bg5 {[%clk 0:02:19.3]} 6... h6 {[%clk
0:02:58.2]} 7. Bh4 {[%clk 0:02:15]} 7... c6 {[%clk 0:02:58.3]} 8. Qc2 {[%clk
0:02:14.7]} 8... O-O {[%clk 0:02:55.3]} 9. e3 {[%clk 0:02:13.6]} 9... Nh5 {[%clk
0:02:46.2]} 10. Bd3 {[%clk 0:02:14.5]} 10... Bxh4 {[%clk 0:02:45.5]} 0-1

[Event "Early-Titled-Tuesday-Blitz-March-26-2024"]
[Site "Chess.com"]
[Date "2024.03.26"]
[Round "8"]
[White "karinachess1"]
[Black "ljuks68"]
[Result "1-0"]
[WhiteElo "2606"]
[BlackElo "2434"]
[TimeControl "180+1"]
[EndTime "9:21:15 PDT"]
[Termination "karinachess1 won by resignation"]

1. d4 {[%clk 0:03:00.9]} 1... d5 {[%clk 0:02:49.8]} 2. c4 {[%clk 0:03:01.3]}
2... c6 {[%clk 0:02:49.6]} 3. Nf3 {[%clk 0:03:00.4]} 3... Nf6 {[%clk 0:02:49.9]}
4. g3 {[%clk 0:03:00.7]} 4... Bf5 {[%clk 0:02:49.4]} 5. Nc3 {[%clk 0:02:59.2]}
5... e6 {[%clk 0:02:49.5]} 6. Qb3 {[%clk 0:02:59.5]} 6... Qb6 {[%clk 0:02:42.2]}
7. c5 {[%clk 0:02:59.8]} 7... Qc7 {[%clk 0:02:42.5]} 8. Bf4 {[%clk 0:02:59.5]}
8... Qc8 {[%clk 0:02:42.9]} 9. Nh4 {[%clk 0:03:00.2]} 9... Bg6 {[%clk
0:02:34.4]} 10. Nxg6 {[%clk 0:03:00.1]} 10... hxg6 {[%clk 0:02:34.8]} 11. Bg2
{[%clk 0:03:00.8]} 11... Nbd7 {[%clk 0:02:33]} 12. O-O {[%clk 0:02:58]} 12... b6
{[%clk 0:02:32.4]} 13. cxb6 {[%clk 0:02:57.6]} 13... axb6 {[%clk 0:02:32.7]} 14.
Rac1 {[%clk 0:02:56.3]} 14... Qb7 {[%clk 0:02:32.5]} 15. e4 {[%clk 0:02:55.3]}
15... Be7 {[%clk 0:02:21.7]} 16. exd5 {[%clk 0:02:54.9]} 16... Nxd5 {[%clk
0:02:01.3]} 17. Nxd5 {[%clk 0:02:50.7]} 17... exd5 {[%clk 0:02:01.6]} 18. Rfe1
{[%clk 0:02:46.8]} 18... Kf8 {[%clk 0:01:41.5]} 19. Bxd5 {[%clk 0:02:37.4]}
19... Rc8 {[%clk 0:01:32.6]} 20. Bxf7 {[%clk 0:02:33.1]} 20... Nf6 {[%clk
0:01:30.1]} 21. Qe6 {[%clk 0:02:23.6]} 21... Bb4 {[%clk 0:01:16.9]} 22. Bxg6
{[%clk 0:02:20.4]} 1-0